bitfinex-derivatives/quotes_SOLF0:USTF0_20240912
["timestamp","ask_amount","ask_price","bid_price","bid_amount"]
[1726119800371,21.44234847,135.21,135.15,1.376]
[1726119801479,17.73,135.19,135.11,1.3327]
[1726119802282,3.329,135.16,135.11,1.3327]
[1726119803288,3.329,135.16,135.11,4.6627]
[1726119804974,3.3287,135.17,135.11,4.6627]
[1726119806282,21.41125338,135.19,135.11,1.3327]
[1726119807079,3.3287,135.17,135.11,4.6626]
[1726119808087,3.3287,135.17,135.12,3.3298]
[1726119809990,3.3284,135.18,135.13,3.3296]
[1726119810486,3.68125338,135.19,135.11,1.3327]
[1726119810690,17.73,135.21,135.11,1.3327]
[1726119811182,21.34870686,135.21,135.11,1.3327]
[1726119811784,3.3286,135.17,135.12,3.3298]
[1726119813091,17.73,135.19,135.11,4.6627]
[1726119813295,17.73,135.19,135.11,1.3327]
[1726119813788,3.3287,135.17,135.11,1.3327]
[1726119814594,3.63600644,135.18,135.11,1.3327]
[1726119815287,3.3288,135.17,135.12,3.3297]
[1726119816189,3.3289,135.16,135.12,3.3297]
[1726119820284,3.3286,135.17,135.12,3.3297]
[1726119820492,3.3286,135.17,135.13,3.3296]
[1726119822990,3.3286,135.17,135.12,3.3298]
[1726119824699,3.3286,135.17,135.13,3.3295]
[1726119830899,14.6984,135.18,135.13,3.3295]
[1726119834194,3.3286,135.17,135.13,3.3295]
[1726119837401,15.01710875,135.21,135.13,11.37]
[1726119837707,15.01710875,135.21,135.14,11.37]
[1726119837898,3.3281,135.19,135.14,11.37]
[1726119838099,15.01710875,135.21,135.14,11.37]
[1726119838715,11.37,135.19,135.14,11.37]
[1726119838908,11.37,135.19,135.13,11.37]
[1726119839913,3.3285,135.18,135.13,14.6994]
[1726119843714,3.3285,135.18,135.14,3.3293]
[1726119845408,3.3285,135.18,135.13,14.6995]
[1726119846214,3.3285,135.18,135.14,3.3293]
[1726119848821,14.6982,135.19,135.14,3.3293]
[1726119850224,11.37,135.19,135.14,11.37]
[1726119850412,2.6772,135.22,135.15,15.0841878]
[1726119850413,14.0472,135.22,135.15,15.0841878]
[1726119850618,1.3474,135.22,135.15,11.37]
[1726119850820,1.3474,135.22,135.13,1.3424]
[1726119850821,1.3474,135.22,135.18,3.3282]
[1726119851118,1.344,135.25,135.17,11.37]
[1726119851321,11.37,135.24,135.17,11.37]
[1726119852816,3.3271,135.23,135.17,11.37]
[1726119853317,11.37,135.24,135.17,11.37]
[1726119854129,3.3272,135.23,135.18,3.3283]
[1726119855028,3.3274,135.22,135.18,3.3283]
[1726119855616,3.3271,135.23,135.18,3.3283]
[1726119857221,3.3271,135.23,135.17,11.37]
[1726119857222,3.3271,135.23,135.19,3.3281]
[1726119857826,3.3271,135.23,135.17,11.37]
[1726119858430,3.3271,135.23,135.18,3.3283]
[1726119858627,3.3276,135.21,135.16,1.3988]
[1726119858924,14.6976,135.21,135.16,4.7275]
[1726119861317,11.37,135.21,135.16,1.3988]
[1726119861923,3.328,135.2,135.16,1.3988]
[1726119866926,11.37,135.2,135.13,12.7124]
[1726119867333,3.3285,135.18,135.13,16.0419]
[1726119867833,11.37,135.2,135.13,16.0419]
[1726119868034,11.37,135.2,135.14,3.3293]
[1726119868522,3.3283,135.19,135.14,3.3293]
[1726119869433,3.3284,135.18,135.13,16.0419]
[1726119869633,11.37,135.2,135.13,16.0419]
[1726119869927,11.37,135.2,135.13,14.6995]
[1726119871332,3.3284,135.18,135.14,3.3293]
[1726119873224,3.3287,135.17,135.13,14.6995]
[1726119878033,11.37,135.2,135.1,1.3931]
[1726119878234,3.3291,135.15,135.12,16.0032]
[1726119880239,3.3289,135.16,135.12,16.0032]
[1726119881031,3.3289,135.16,135.12,12.6734]
[1726119881239,3.3289,135.16,135.13,3.3296]
[1726119882842,3.3288,135.17,135.14,11.37]
[1726119888539,1.4245,135.19,135.14,11.37]
[1726119889841,4.7528,135.19,135.14,14.6993]
[1726119890544,3.3284,135.18,135.14,11.37]
[1726119891140,12.7945,135.19,135.12,1.3034]
[1726119891546,11.37,135.18,135.1,1.3931]
[1726119891745,3.3289,135.16,135.11,14.6999]
[1726119892446,3.3291,135.15,135.11,14.6999]
[1726119892643,3.3291,135.15,135.1,4.7233]
[1726119892845,11.37,135.16,135.1,4.7233]
[1726119893037,15.04199933,135.16,135.1,14.7002]
[1726119893443,15.04199933,135.16,135.1,11.37]
[1726119893741,15.04199933,135.16,135.09,4.7052]
[1726119893940,3.3298,135.13,135.09,1.3747]
[1726119894138,11.37,135.13,135.05,1.3906]
[1726119894343,11.37,135.12,135.05,2.7959]
[1726119894553,11.37,135.12,135.06,11.37]
[1726119895243,11.37,135.12,135.06,14.7012]
[1726119895244,3.3301,135.11,135.06,14.7012]
[1726119897445,3.3299,135.12,135.07,14.701]
[1726119897653,12.6907,135.13,135.07,11.37]
[1726119898452,16.0204,135.13,135.08,3.3308]
[1726119898842,11.37,135.12,135.05,1.4053]
[1726119899049,11.37,135.1,135.05,1.4053]
[1726119899548,3.3304,135.1,135.05,4.7368]
[1726119900351,3.3301,135.11,135.06,14.7013]
[1726119900655,11.37,135.12,135.06,11.37]
[1726119901252,3.3305,135.1,135.06,11.37]
[1726119901951,3.3306,135.09,135.04,4.6674]
[1726119902146,3.3306,135.09,135.04,16.0374]
[1726119902560,3.3304,135.1,135.04,16.0374]
[1726119903051,3.3304,135.1,135.05,3.3315]
[1726119903358,3.3304,135.1,135.05,14.7015]
[1726119903557,3.33,135.12,135.07,3.331]
[1726119904147,4.6504,135.13,135.08,14.7006]
[1726119904454,1.3207,135.13,135.08,11.37]
[1726119905671,12.6907,135.13,135.06,11.37]
[1726119906254,12.6907,135.13,135.08,11.37]
[1726119906255,1.3207,135.13,135.08,11.37]
[1726119906547,3.68871552,135.16,135.08,11.37]
[1726119906752,11.37,135.15,135.08,11.37]
[1726119907054,15.05279166,135.15,135.08,11.37]
[1726119907459,11.37,135.14,135.08,11.37]
[1726119907858,3.3296,135.13,135.09,3.3304]
[1726119910062,3.3296,135.13,135.08,14.7007]
[1726119910259,3.3292,135.15,135.08,11.37]
[1726119910460,14.0595,135.18,135.11,11.37]
[1726119910660,14.0595,135.18,135.12,3.3298]
[1726119910864,3.3288,135.16,135.12,3.3298]
[1726119911361,3.3287,135.17,135.11,11.37]
[1726119912055,3.3289,135.16,135.11,3.33]
[1726119912260,11.37,135.17,135.1,11.37]
[1726119912858,3.3291,135.15,135.1,14.7002]
[1726119913865,3.3291,135.15,135.11,3.33]
[1726119914763,3.3291,135.15,135.1,14.7002]
[1726119915558,3.3295,135.14,135.1,11.37]
[1726119916559,3.3292,135.15,135.1,14.7002]
[1726119919357,1.3857,135.18,135.12,11.37]
[1726119919558,1.3857,135.18,135.13,11.37]
[1726119919763,1.3857,135.18,135.12,11.37]
[1726119920059,3.3289,135.16,135.12,11.37]
[1726119920259,1.3857,135.18,135.14,3.3293]
[1726119920466,11.37,135.19,135.13,11.37]
[1726119920870,14.6983,135.19,135.13,11.37]
[1726119921076,14.6983,135.19,135.14,3.3292]
[1726119921665,3.3279,135.2,135.15,3.3291]
[1726119921872,11.37,135.2,135.13,11.37]
[1726119922463,11.37,135.2,135.14,3.3292]
[1726119922464,3.3283,135.19,135.14,3.3292]
[1726119922665,14.6983,135.19,135.14,3.3292]
[1726119922865,11.37,135.19,135.13,11.37]
[1726119923574,11.37,135.18,135.12,11.37]
[1726119925074,3.329,135.16,135.12,11.37]
[1726119925774,3.3287,135.17,135.12,14.6998]
[1726119926371,3.329,135.16,135.12,11.37]
[1726119926562,3.329,135.16,135.11,3.33]
[1726119926965,3.329,135.16,135.1,11.37]
[1726119926966,3.3293,135.15,135.1,3.3302]
[1726119927463,3.3298,135.13,135.09,2.7278]
[1726119929574,3.3298,135.13,135.09,6.0583]
[1726119930478,3.3294,135.14,135.09,6.0583]
[1726119930777,3.3294,135.14,135.09,17.4283]
[1726119933172,3.3294,135.14,135.1,3.3303]
[1726119934573,14.6991,135.15,135.1,3.3303]
[1726119935672,3.3293,135.14,135.1,3.3303]
[1726119937275,14.6992,135.15,135.1,3.3303]
[1726119938381,3.329,135.16,135.11,3.33]
[1726119938570,2.5394,135.21,135.11,11.37]
[1726119938766,11.37,135.17,135.11,11.37]
[1726119939567,11.37,135.17,135.09,2.7278]
[1726119939568,32.2186669,135.2,135.12,11.37]
[1726119939780,11.37,135.19,135.12,11.37]
[1726119940183,2.5394,135.21,135.13,11.37]
[1726119940372,11.37,135.2,135.13,11.37]
[1726119940974,3.3282,135.19,135.14,3.3292]
[1726119943592,3.3282,135.19,135.14,4.7375]
[1726119947989,11.37,135.2,135.14,1.4083]
[1726119948187,1.3611,135.21,135.14,1.4083]
[1726119948486,3.3282,135.19,135.14,4.7375]
[1726119951886,3.3282,135.19,135.14,16.1075]
[1726119954483,3.3282,135.19,135.15,3.3291]
[1726119955193,3.77782786,135.23,135.14,12.7783]
[1726119955194,11.37,135.25,135.18,11.37]
[1726119955394,11.37,135.25,135.2,11.37]
[1726119955594,14.67705443,135.26,135.2,11.37]
[1726119955786,11.37,135.25,135.2,11.37]
[1726119956895,3.3271,135.23,135.2,11.37]
[1726119957491,1.1781,135.26,135.2,11.37]
[1726119957697,11.37,135.25,135.2,11.37]
[1726119958295,11.37,135.25,135.15,2.6852]
[1726119958296,11.37,135.22,135.15,2.6852]
[1726119958599,11.37,135.22,135.16,11.37]
[1726119958896,3.3278,135.21,135.16,14.6987]
[1726119959291,3.3278,135.21,135.16,11.37]
[1726119959694,3.328,135.2,135.16,11.37]
[1726119959997,11.37,135.21,135.16,11.37]
[1726119961093,3.3283,135.19,135.16,11.37]
[1726119961489,11.37,135.21,135.16,11.37]
[1726119961693,3.3279,135.2,135.16,11.37]
[1726119962587,3.3276,135.21,135.16,14.6988]
[1726119964200,3.328,135.2,135.15,4.7158]
[1726119964498,3.328,135.2,135.16,11.37]
[1726119965301,3.3277,135.21,135.16,14.6988]
[1726119966000,3.3279,135.2,135.15,4.7159]
[1726119966508,3.3279,135.2,135.16,11.37]
[1726119967094,12.7784,135.22,135.14,1.4083]
[1726119967400,11.37,135.2,135.14,1.4083]
[1726119968402,2.8191,135.22,135.14,1.4083]
[1726119968796,3.3285,135.18,135.14,1.4083]
[1726119972311,3.3285,135.18,135.14,4.7376]
[1726119974104,3.328,135.2,135.15,14.6989]
[1726119975503,6.1467,135.22,135.16,11.37]
[1726119975708,6.1467,135.22,135.17,11.37]
[1726119976008,4.736,135.22,135.17,11.37]
[1726119976409,4.736,135.22,135.17,14.6984]
[1726119977110,3.3276,135.22,135.18,3.3283]
[1726119978213,3.3276,135.22,135.17,14.6985]
[1726119979421,3.3276,135.22,135.18,3.3283]
[1726119981219,3.3276,135.21,135.16,3.3287]
[1726119981523,3.3276,135.21,135.16,14.6987]
[1726119981714,3.63799052,135.23,135.16,11.37]
[1726119981915,3.3277,135.21,135.17,3.3284]
[1726119985714,3.3277,135.21,135.15,2.6466]
[1726119985715,2.7243,135.25,135.18,11.37]
[1726119985926,2.7243,135.25,135.2,11.37]
[1726119985927,1.3576,135.25,135.2,11.37]
[1726119986824,3.327,135.24,135.2,14.6978]
[1726119987224,1.3576,135.25,135.2,14.6978]
[1726119987421,4.6843,135.25,135.2,11.37]
[1726119987624,1.3576,135.25,135.2,11.37]
[1726119988928,4.6842,135.25,135.2,14.6978]
[1726119990626,3.3269,135.24,135.2,11.37]
[1726119990824,3.3269,135.24,135.19,14.698]
[1726119991629,15.03381281,135.23,135.15,2.6466]
[1726119992020,15.03381281,135.23,135.16,11.37]
[1726119992231,1.3576,135.25,135.17,11.37]
[1726119992423,11.37,135.24,135.17,11.37]
[1726119992825,3.3275,135.22,135.17,14.6985]
[1726119993527,3.3277,135.21,135.17,11.37]
[1726119993724,11.37,135.22,135.16,11.37]
[1726119993929,3.3283,135.19,135.14,16.1074]
[1726119994629,15.03092681,135.21,135.15,14.6991]
[1726119994630,3.3279,135.2,135.15,14.6991]
[1726119995927,3.3277,135.21,135.16,3.3287]
[1726119996430,3.3277,135.21,135.16,11.37]
[1726119996631,14.6974,135.22,135.17,3.3284]
[1726119997031,3.3274,135.22,135.16,11.37]
[1726119997631,3.3274,135.22,135.17,3.3285]
[1726119998828,3.3274,135.22,135.18,3.3283]
[1726119999922,12.7276,135.25,135.19,14.6981]
[1726120000329,3.3271,135.24,135.19,14.6981]
[1726120000724,11.37,135.24,135.18,3.3283]
[1726120001526,3.3272,135.23,135.18,3.3283]
[1726120002129,11.37,135.23,135.17,3.3286]
[1726120002440,15.05238333,135.23,135.16,11.37]
[1726120003240,3.3278,135.21,135.16,11.37]
[1726120003735,3.3278,135.21,135.16,14.6988]
[1726120004238,3.3279,135.2,135.16,14.6988]
[1726120004638,15.05238333,135.23,135.16,14.6988]
[1726120004836,3.3276,135.21,135.16,14.6988]
[1726120005339,3.3279,135.2,135.16,14.6988]
[1726120005534,1.3576,135.25,135.17,11.37]
[1726120005739,12.7276,135.25,135.19,11.37]
[1726120006528,3.327,135.24,135.19,11.37]
[1726120006840,12.7276,135.25,135.19,11.37]
[1726120007933,3.3271,135.24,135.19,14.698]
[1726120014039,3.3271,135.23,135.19,14.698]
[1726120014837,3.3271,135.23,135.19,11.37]
[1726120017242,3.3271,135.23,135.18,3.3283]
[1726120017243,14.6971,135.23,135.18,3.3283]
[1726120018746,14.6971,135.23,135.19,3.3281]
[1726120026559,11.37,135.22,135.16,11.37]
[1726120027157,3.3277,135.21,135.17,3.3284]
[1726120030058,14.6975,135.22,135.17,3.3284]
[1726120030859,3.3272,135.23,135.19,11.37]
[1726120031855,3.3272,135.23,135.19,14.6979]
[1726120035368,3.3272,135.23,135.19,3.3279]
[1726120035555,3.3275,135.22,135.15,2.6817]
[1726120035757,3.3275,135.22,135.16,11.37]
[1726120036257,3.3275,135.22,135.17,3.3284]
[1726120040170,3.3275,135.22,135.18,3.3283]
[1726120041563,14.90088217,135.27,135.19,11.37]
[1726120041759,14.90088217,135.27,135.21,11.37]
[1726120041965,1.4047,135.27,135.21,11.37]
[1726120042566,3.3265,135.26,135.21,14.6975]
[1726120043972,11.37,135.26,135.2,1.3019]
[1726120044173,1.4047,135.27,135.2,1.3019]
[1726120044378,3.3264,135.26,135.21,3.3274]
[1726120044579,14.89941052,135.27,135.21,11.37]
[1726120044770,14.89941052,135.27,135.2,1.3019]
[1726120044771,17.78256672,135.29,135.22,11.37]
[1726120045079,16.82078645,135.28,135.23,3.3271]
[1726120045472,3.3261,135.28,135.23,3.3271]
[1726120045873,16.82078645,135.28,135.22,18.46069601]
[1726120046067,3.3261,135.28,135.22,18.46069601]
[1726120046270,3.3261,135.28,135.22,15.13339601]
[1726120046474,16.82078645,135.28,135.22,15.13339601]
[1726120046674,3.3261,135.28,135.22,15.13339601]
[1726120047985,3.3263,135.27,135.22,11.37]
[1726120049981,3.3263,135.27,135.22,14.6973]
[1726120050380,3.3263,135.27,135.22,11.37]
[1726120050685,3.3264,135.26,135.22,11.37]
[1726120051477,14.78698645,135.29,135.22,11.37]
[1726120051701,1.2923,135.29,135.24,11.37]
[1726120051878,3.3259,135.28,135.24,11.37]
[1726120052984,1.2923,135.29,135.22,12.6684]
[1726120052985,12.6623,135.29,135.22,12.6684]
[1726120053884,3.3262,135.27,135.22,15.9957]
[1726120054983,3.3262,135.27,135.23,3.3271]
[1726120056281,12.6623,135.29,135.23,3.3271]
[1726120056282,3.326,135.28,135.23,3.3271]
[1726120057478,3.326,135.28,135.23,14.6971]
[1726120057690,3.326,135.28,135.24,3.3268]
[1726120058085,3.3257,135.29,135.25,11.37]
[1726120058279,118.11263198,135.31,135.25,11.37]
[1726120058483,11.37,135.3,135.23,11.37]
[1726120059987,3.326,135.28,135.24,3.3268]
[1726120061990,3.3257,135.29,135.26,3.3264]
[1726120062190,118.11263198,135.31,135.23,11.37]
[1726120062897,3.3257,135.29,135.24,3.3267]
[1726120064390,3.3257,135.29,135.23,11.37]
[1726120064391,3.3257,135.29,135.25,3.3265]
[1726120064784,3.3257,135.29,135.25,14.6965]
[1726120066196,3.3261,135.28,135.25,11.37]
[1726120067395,3.3257,135.29,135.25,14.6966]
[1726120069202,2.7081,135.33,135.26,11.37]
[1726120069497,2.7081,135.33,135.28,11.37]
[1726120070096,4.7104,135.33,135.28,18.44097549]
[1726120073597,4.7104,135.33,135.28,14.6957]
[1726120079100,3.3247,135.33,135.28,14.6957]
[1726120081113,3.3253,135.31,135.28,11.37]
[1726120081412,15.11342689,135.35,135.28,11.37]
[1726120082903,3.3247,135.33,135.29,3.3256]
[1726120083399,15.11342689,135.35,135.3,3.3253]
[1726120083400,7.06772689,135.35,135.3,3.3253]
[1726120083599,3.3243,135.35,135.31,11.37]
[1726120084711,15.00160363,135.36,135.29,1.3618]
[1726120085015,11.37,135.36,135.29,12.7318]
[1726120085204,11.37,135.35,135.29,12.7318]
[1726120085805,3.3248,135.33,135.29,12.7318]
[1726120086009,11.37,135.35,135.29,1.3618]
[1726120086211,11.37,135.33,135.26,11.37]
[1726120086510,11.37,135.35,135.28,11.37]
[1726120086805,11.37,135.35,135.29,11.37]
[1726120087008,3.3248,135.33,135.29,11.37]
[1726120090113,11.37,135.34,135.28,11.37]
[1726120090904,11.37,135.35,135.28,11.37]
[1726120091508,3.3249,135.33,135.28,14.6958]
[1726120091705,11.37,135.35,135.28,11.37]
[1726120092200,3.3249,135.32,135.28,11.37]
[1726120092404,11.37,135.35,135.28,11.37]
[1726120092607,3.3249,135.33,135.28,14.6957]
[1726120093719,3.3249,135.32,135.28,14.6957]
[1726120093908,11.37,135.35,135.28,11.37]
[1726120094306,3.3251,135.32,135.28,11.37]
[1726120094710,11.37,135.32,135.23,1.321]
[1726120094913,11.37,135.32,135.25,11.37]
[1726120095114,3.3255,135.3,135.25,11.37]
[1726120095512,11.37,135.32,135.25,11.37]
[1726120095714,3.3252,135.31,135.25,11.37]
[1726120095914,11.37,135.34,135.27,14.696]
[1726120096811,3.3251,135.32,135.27,14.696]
[1726120097710,3.3251,135.32,135.28,3.3258]
[1726120097923,3.3251,135.32,135.27,11.37]
[1726120098811,3.3249,135.32,135.27,14.6961]
[1726120099011,11.37,135.34,135.27,14.6961]
[1726120099219,11.37,135.34,135.28,1.4178]
[1726120099417,3.3249,135.32,135.28,1.4178]
[1726120101013,3.3253,135.31,135.28,1.4178]
[1726120102120,11.37,135.34,135.28,1.4178]
[1726120102412,5.04128747,135.37,135.29,11.37]
[1726120102619,11.37,135.36,135.29,11.37]
[1726120103516,3.3246,135.34,135.29,14.6955]
[1726120104211,5.04128747,135.37,135.3,3.3254]
[1726120104417,3.3242,135.35,135.3,3.3254]
[1726120104916,3.3242,135.35,135.3,14.6954]
[1726120105415,3.3245,135.34,135.3,14.6954]
[1726120105821,3.3245,135.34,135.3,11.37]
[1726120107915,3.3245,135.34,135.3,14.6954]
[1726120108825,3.3245,135.34,135.3,11.37]
[1726120109621,7.71805444,135.48,135.29,4.748]
[1726120109622,3.63758594,135.45,135.33,11.37]
[1726120109815,11.37,135.42,135.3,1.2975]
[1726120110015,3.3237,135.37,135.33,11.37]
[1726120110623,3.3237,135.37,135.32,3.3249]
[1726120110823,3.3239,135.36,135.3,1.2975]
[1726120111117,3.3239,135.36,135.33,11.37]
[1726120111322,11.37,135.39,135.33,11.37]
[1726120111826,3.3238,135.37,135.33,11.37]
[1726120113715,3.3238,135.37,135.33,14.6946]
[1726120114424,3.3238,135.37,135.33,11.37]
[1726120115728,11.37,135.4,135.34,3.3242]
[1726120116225,3.3235,135.38,135.33,14.6946]
[1726120118420,3.3235,135.38,135.34,3.3244]
[1726120119530,3.3235,135.38,135.33,14.6946]
[1726120121324,3.3237,135.37,135.33,14.6946]
[1726120122231,3.324,135.36,135.32,3.3248]
[1726120126123,11.37,135.37,135.31,14.6951]
[1726120126337,15.15066003,135.37,135.31,14.6951]
[1726120128327,3.3243,135.35,135.31,14.6951]
[1726120132237,3.3243,135.35,135.31,3.3251]
[1726120132438,3.3243,135.35,135.31,14.6951]
[1726120133444,1.3262,135.39,135.34,11.37]
[1726120133740,12.6962,135.39,135.33,11.37]
[1726120133940,3.3238,135.37,135.33,14.6946]
[1726120134640,12.6962,135.39,135.33,14.6946]
[1726120135543,3.3238,135.37,135.33,14.6946]
[1726120135843,12.6962,135.39,135.34,3.3244]
[1726120136432,3.3236,135.38,135.33,14.6946]
[1726120139048,3.3236,135.38,135.34,3.3244]
[1726120140043,1.3262,135.39,135.35,3.324]
[1726120140249,1.3262,135.39,135.33,11.37]
[1726120140754,1.3262,135.39,135.34,3.3242]
[1726120141847,1.3262,135.39,135.32,3.3247]
[1726120142051,1.3262,135.39,135.33,1.3981]
[1726120142256,1.3262,135.39,135.34,11.37]
[1726120143252,4.6495,135.39,135.34,14.6943]
[1726120143448,11.37,135.41,135.34,11.37]
[1726120143954,3.323,135.4,135.34,11.37]
[1726120144141,11.37,135.41,135.34,11.37]
[1726120145047,3.3233,135.39,135.35,3.324]
[1726120145751,3.3235,135.38,135.33,12.7681]
[1726120146255,3.3235,135.38,135.33,16.0926]
[1726120148352,3.3235,135.38,135.34,3.3244]
[1726120149257,3.3237,135.37,135.33,16.0927]
[1726120149653,3.3237,135.37,135.33,12.7681]
[1726120150557,11.37,135.41,135.34,11.37]
[1726120151456,3.3232,135.39,135.34,14.6943]
[1726120156264,3.3235,135.38,135.34,14.6943]
[1726120156755,3.3235,135.38,135.34,11.37]
[1726120157357,3.66297753,135.37,135.31,3.3251]
[1726120157663,11.37,135.36,135.31,3.3251]
[1726120159560,3.3243,135.35,135.31,3.3251]
[1726120162567,3.3245,135.34,135.31,3.3251]
[1726120166163,3.3243,135.35,135.31,3.3251]
[1726120168466,3.324,135.36,135.32,11.37]
[1726120168662,3.324,135.36,135.33,11.37]
[1726120169174,29.960263,135.4,135.34,11.37]
[1726120169374,11.37,135.42,135.34,11.37]
[1726120169572,11.37,135.42,135.36,11.37]
[1726120169973,24.85186353,135.42,135.36,11.37]
[1726120170269,11.37,135.42,135.36,11.37]
[1726120170963,11.37,135.39,135.33,11.37]
[1726120171162,15.75464846,135.41,135.33,11.37]
[1726120171363,41.32643901,135.41,135.33,11.37]
[1726120171571,11.37,135.41,135.33,11.37]
[1726120172180,41.32687464,135.41,135.33,11.37]
[1726120172477,11.37,135.41,135.33,11.37]
[1726120172870,3.3232,135.39,135.34,11.37]
[1726120173674,3.323,135.4,135.35,3.3241]
[1726120173869,11.37,135.41,135.35,1.4201]
[1726120174070,14.6929,135.41,135.36,3.3238]
[1726120174981,3.323,135.4,135.36,3.3238]
[1726120175173,13.48081446,135.42,135.36,3.3238]
[1726120175582,3.3228,135.41,135.37,3.3236]
[1726120178673,3.3228,135.41,135.36,3.3238]
[1726120179074,3.3228,135.41,135.35,12.7901]
[1726120180982,3.3228,135.41,135.35,1.4201]
[1726120180983,3.323,135.4,135.35,1.4201]
[1726120181878,3.323,135.4,135.36,3.3239]
[1726120182081,3.3232,135.39,135.35,1.4201]
[1726120182280,3.3232,135.39,135.36,3.3239]
[1726120182678,3.3232,135.39,135.35,1.4201]
[1726120183578,40.8176296,135.58,135.36,11.37]
[1726120183784,40.8176296,135.58,135.38,11.37]
[1726120183785,11.37,135.45,135.38,11.37]
[1726120184182,3.3221,135.44,135.4,3.3229]
[1726120185086,3.3218,135.45,135.4,3.3229]
[1726120185282,14.6918,135.45,135.4,3.3229]
[1726120186485,16.79965136,135.46,135.39,11.37]
[1726120186674,13.47815136,135.47,135.39,11.37]
[1726120186873,13.47815136,135.47,135.37,1.3783]
[1726120186874,13.47815136,135.47,135.42,11.37]
[1726120187582,13.47815136,135.47,135.43,3.3221]
[1726120188175,13.47815136,135.47,135.42,11.37]
[1726120188382,16.79945136,135.47,135.42,11.37]
[1726120188684,11.37,135.49,135.42,11.37]
[1726120189083,1.4018,135.52,135.42,14.97625725]
[1726120189383,231.72745418,135.62,135.47,11.37]
[1726120189682,3.32,135.52,135.47,11.37]
[1726120190082,3.32,135.52,135.47,14.6912]
[1726120190283,3.3203,135.51,135.45,11.37]
[1726120190489,3.3203,135.51,135.42,4.89845725]
[1726120190681,14.69,135.52,135.45,11.37]
[1726120191082,1.1738,135.59,135.47,11.37]
[1726120191389,1.1738,135.59,135.48,1.3092]
[1726120191390,11.37,135.53,135.48,1.3092]
[1726120191589,11.37,135.52,135.48,1.3092]
[1726120191786,11.37,135.52,135.42,4.89845725]
[1726120192088,11.37,135.52,135.44,11.37]
[1726120192284,3.74768635,135.53,135.44,11.37]
[1726120192488,13.47033868,135.56,135.45,11.37]
[1726120192690,11.37,135.52,135.45,11.37]
[1726120193192,3.3202,135.51,135.46,3.3214]
[1726120195181,3.3208,135.49,135.44,3.3219]
[1726120195387,11.37,135.49,135.44,3.3219]
[1726120196485,1.1711,135.54,135.45,11.37]
[1726120196690,11.37,135.5,135.44,11.37]
[1726120196880,3.3208,135.49,135.44,11.37]
[1726120197190,3.3208,135.49,135.43,12.6792]
[1726120197586,11.37,135.48,135.43,1.3092]
[1726120197785,11.37,135.47,135.43,1.3092]
[1726120198188,14.6914,135.47,135.43,1.3092]
[1726120198389,11.37,135.47,135.43,1.3092]
[1726120198987,1.1711,135.54,135.43,5.01478859]
[1726120199189,11.37,135.51,135.44,11.37]
[1726120200891,3.3206,135.5,135.45,3.3216]
[1726120201494,3.3207,135.49,135.44,14.6919]